bitfinex-derivatives/quotes_ETHF0:USTF0_20250504
["timestamp","ask_amount","ask_price","bid_price","bid_amount"]
[1746326926751,3.48358,1833.6,1833.3,8.5044]
[1746326926752,1.0907,1833.4,1833.3,6.8748]
[1746326927254,1.9204,1833.4,1833.3,6.8748]
[1746326927752,1.9204,1833.4,1833.3,7.96556]
[1746326928050,1.09085,1833.2,1833.0,4.75689]
[1746326928453,1.587,1833.1,1833.0,4.75689]
[1746326928857,2.67788,1833.1,1833.0,3.666]
[1746326929057,1.587,1833.1,1833.0,3.666]
[1746326929249,1.587,1833.1,1832.9,3.2078]
[1746326929451,1.09094,1833.0,1832.9,6.8738]
[1746326929657,0.8295,1833.0,1832.9,7.9648]
[1746326930045,3.54404,1833.0,1832.9,3.2078]
[1746326930251,3.54404,1833.0,1832.9,6.8738]
[1746326931853,2.4531,1833.0,1832.9,7.9648]
[1746326932051,3.54404,1833.0,1832.9,6.8738]
[1746326932252,3.54404,1833.0,1832.9,7.9648]
[1746326932451,2.4531,1833.0,1832.9,7.9648]
[1746326932659,3.54404,1833.0,1832.9,7.9648]
[1746326932860,2.4531,1833.0,1832.9,7.9648]
[1746326934162,3.54404,1833.0,1832.9,7.9648]
[1746326934751,2.4531,1833.0,1832.9,7.9648]
[1746326935764,0.7997,1833.3,1833.1,1.09087]
[1746326935959,6.83014431,1833.6,1832.9,5.93529]
[1746326936264,3.62234431,1833.6,1833.5,1.09064]
[1746326936857,3.62234431,1833.6,1833.5,2.78484]
[1746326937461,3.62234431,1833.6,1833.5,7.78484]
[1746326937662,3.62234431,1833.6,1833.5,5.99264]
[1746326938264,3.61719678,1833.6,1833.5,10.99264]
[1746326938658,2.52227678,1833.6,1833.5,10.99264]
[1746326938962,1.43009678,1833.6,1833.5,10.99264]
[1746326939167,1.43009678,1833.6,1833.5,14.68064]
[1746326939557,6.78e-06,1833.6,1833.5,17.55671]
[1746326940465,6.78e-06,1833.6,1833.5,12.55671]
[1746326940964,6.78e-06,1833.6,1833.5,16.22271]
[1746326941566,1.6705,1833.7,1833.6,1.09058]
[1746326941769,1.6705,1833.7,1833.6,2.66388]
[1746326944063,0.7883,1833.8,1833.7,1.09052]
[1746326944263,2.4946,1834.0,1833.9,1.0904]
[1746326944460,3.667,1834.6,1834.1,1.09023]
[1746326944661,1.6551,1834.2,1834.1,1.09023]
[1746326947664,1.6551,1834.2,1834.1,4.29803]
[1746326947866,0.8616,1834.5,1834.4,1.09011]
[1746326948066,0.8616,1834.5,1834.4,4.75611]
[1746326949272,0.8616,1834.5,1834.4,6.37411]
[1746326949873,5.43930588,1834.7,1834.6,1.08999]
[1746326950367,1.6399,1834.8,1834.7,1.08993]
[1746326950567,1.6399,1834.8,1834.7,4.75493]
[1746326951972,1.6399,1834.8,1834.7,7.96273]
[1746326953869,7.72977,1834.8,1834.7,3.664]
[1746326954073,11.41777,1834.8,1834.7,3.664]
[1746326954372,5.3279,1834.8,1834.7,4.75393]
[1746326955167,1.6399,1834.8,1834.7,4.75393]
[1746326955371,2.72977,1834.8,1834.7,4.75393]
[1746326955573,1.6399,1834.8,1834.7,4.75393]
[1746326957671,2.72977,1834.8,1834.7,3.664]
[1746326959574,9.36462,1834.8,1834.5,3.664]
[1746326959767,9.36462,1834.8,1834.2,4.29801]
[1746326959768,4.9215,1834.7,1834.2,3.2078]
[1746326960072,3.2078,1834.5,1834.1,3.663]
[1746326960271,3.2078,1834.2,1833.8,4.29823]
[1746326960482,1.09038,1834.0,1833.8,4.29823]
[1746326960781,1.0905,1833.8,1833.6,8.32810636]
[1746326960981,1.6194,1833.7,1833.6,8.32810636]
[1746326961179,1.6194,1833.7,1833.6,11.99110636]
[1746326962980,1.6194,1833.7,1833.6,10.90056636]
[1746326963182,1.6194,1833.7,1833.6,11.99114636]
[1746326963481,1.6194,1833.7,1833.6,4.75358]
[1746326963680,1.6194,1833.7,1833.6,3.663]
[1746326963877,2.70992,1833.7,1833.6,3.663]
[1746326964079,3.54802,1833.7,1833.6,3.663]
[1746326965277,1.09061,1833.6,1833.4,55.602]
[1746326965476,1.6034,1833.5,1833.4,55.602]
[1746326966278,2.69404,1833.5,1833.4,59.266]
[1746326967877,1.6034,1833.5,1833.4,59.266]
[1746326968482,1.6034,1833.5,1833.4,60.3567]
[1746326968684,1.6034,1833.5,1833.4,59.266]
[1746326969784,2.69404,1833.5,1833.4,59.266]
[1746326969985,2.69404,1833.5,1833.4,55.602]
[1746326970285,2.69404,1833.5,1833.4,59.266]
[1746326970484,2.69404,1833.5,1833.4,3.664]
[1746326970683,1.09076,1833.3,1833.2,3.664]
[1746326971386,3.57826,1833.3,1833.2,3.664]
[1746326971679,1.09082,1833.2,1833.1,3.664]
[1746326971884,2.77112,1833.2,1833.1,3.664]
[1746326972286,1.09094,1833.0,1832.9,3.2078]
[1746326973188,1.09106,1832.8,1832.7,6.8728]
[1746326973785,2.78176,1832.8,1832.7,6.8728]
[1746326974292,2.78176,1832.8,1832.7,3.665]
[1746326975387,3.57556,1832.8,1832.7,3.665]
[1746326976085,2.4845,1832.8,1832.7,3.665]
[1746326976585,3.57556,1832.8,1832.5,4.29901]
[1746326976791,2.73122,1832.7,1832.6,3.665]
[1746326979386,1.6401,1832.7,1832.6,3.665]
[1746326979694,2.73122,1832.7,1832.6,3.665]
[1746326979880,1.6401,1832.7,1832.6,3.665]
[1746326980197,2.73122,1832.7,1832.6,3.665]
[1746326985599,1.6401,1832.7,1832.6,4.75618]
[1746326985802,2.73122,1832.7,1832.6,3.665]
[1746326987299,2.73122,1832.7,1832.6,5.3896]
[1746326988708,1.6401,1832.7,1832.6,5.3896]
[1746326988903,2.73122,1832.7,1832.6,5.3896]
[1746326990405,2.73122,1832.7,1832.6,6.48078]
[1746326990704,1.6401,1832.7,1832.6,6.48078]
[1746326991097,2.73122,1832.7,1832.6,6.48078]
[1746326991305,1.6401,1832.7,1832.6,6.48078]
[1746326991803,1.89263,1832.9,1832.7,1.09112]
[1746326992103,1.89263,1832.9,1832.7,3.55362]
[1746326992900,3.57193,1832.9,1832.7,3.55362]
[1746326993705,1.09106,1832.8,1832.7,3.55362]
[1746326994609,3.57192,1832.9,1832.7,3.55362]
[1746326995108,3.57192,1832.9,1832.8,1.09106]
[1746326995501,1.93368,1833.0,1832.7,2.4625]
[1746326995799,3.63618,1833.0,1832.8,2.66281]
[1746326996101,1.091,1832.9,1832.8,2.66281]
[1746326996303,1.5978,1832.9,1832.8,2.66281]
[1746326996605,2.6888,1832.9,1832.8,2.66281]
[1746326998106,2.6888,1832.9,1832.8,1.5718]
[1746326998503,1.09124,1832.5,1832.4,60.37627]
[1746326998702,1.5978,1832.8,1832.4,59.285]
[1746326998902,2.68894,1832.7,1832.6,1.09117]
[1746326999501,1.5978,1832.7,1832.6,1.09117]
[1746326999705,1.09104,1832.9,1832.6,3.2078]
[1746327000000,1.09106,1832.8,1832.7,6.44619]
[1746327000197,1.6447,1832.9,1832.8,1.09106]
[1746327000403,1.6447,1832.9,1832.8,2.77916]
[1746327000611,2.7357,1832.9,1832.8,2.77916]
[1746327000908,1.6447,1832.9,1832.8,2.77916]
[1746327001108,1.09106,1832.8,1832.7,4.75808]
[1746327001310,2.73574,1832.9,1832.7,5.3551]
[1746327001609,2.73574,1832.9,1832.7,6.44617]
[1746327001810,2.73576,1832.8,1832.7,6.44622]
[1746327002709,1.6447,1832.8,1832.7,6.44622]
[1746327005111,2.73576,1832.8,1832.7,5.3551]
[1746327005712,1.6447,1832.8,1832.7,6.44622]
[1746327006601,1.93366,1833.0,1832.8,1.09101]
[1746327006805,3.59316,1833.0,1832.8,2.78691]
[1746327007011,1.091,1832.9,1832.8,2.78691]
[1746327007313,2.75054,1832.9,1832.7,4.75809]
[1746327007701,1.6595,1832.8,1832.7,4.75809]
[1746327009207,1.6595,1832.8,1832.7,10.07469]
[1746327010114,1.6595,1832.8,1832.7,6.38669]
[1746327010808,1.6595,1832.8,1832.7,4.75809]
[1746327014812,0.8427,1833.0,1832.9,1.091]
[1746327015013,2.4803,1833.0,1832.9,1.091]
[1746327015717,3.57126,1833.0,1832.8,2.7547]
[1746327015913,2.72863,1832.9,1832.7,3.667]
[1746327016113,1.6376,1832.8,1832.7,4.75812]
[1746327016910,2.72866,1832.8,1832.7,4.75812]
[1746327017608,1.6376,1832.8,1832.7,4.75812]
[1746327018014,1.6376,1832.8,1832.7,6.35042]
[1746327024121,0.8427,1833.0,1832.9,1.091]
[1746327024321,0.7959,1833.1,1833.0,1.09094]
[1746327025026,1.88678,1833.1,1832.9,2.72365]
[1746327025211,0.7959,1833.1,1833.0,4.75594]
[1746327025408,1.88678,1833.1,1833.0,3.665]
[1746327028522,0.7959,1833.1,1833.0,4.75594]
[1746327029019,6.52997588,1833.5,1833.0,6.8728]
[1746327029222,0.8415,1833.4,1833.1,2.4356]
[1746327029410,1.09076,1833.3,1833.2,1.0908]
[1746327029924,1.93224,1833.4,1833.3,1.09076]
[1746327030424,0.8415,1833.4,1833.1,2.4356]
[1746327030610,0.8415,1833.4,1833.1,1.09084]
[1746327030811,1.09082,1833.3,1833.1,1.09083]
[1746327031221,0.8642,1833.2,1833.1,1.09083]
[1746327031420,1.95502,1833.2,1833.1,1.09083]
[1746327032316,1.95502,1833.2,1833.0,6.8728]
[1746327032317,1.95502,1833.2,1833.0,7.96369]
[1746327032724,1.95502,1833.2,1833.1,1.09088]
[1746327032920,1.95502,1833.2,1833.1,4.75588]
[1746327033126,1.95502,1833.2,1833.1,3.665]
[1746327033325,1.09088,1833.1,1833.0,3.2078]
[1746327033626,1.09088,1833.1,1833.0,6.8728]
[1746327034124,1.09088,1833.1,1833.0,7.96374]
[1746327034320,1.09088,1833.1,1833.0,7.96371]
[1746327035525,1.09088,1833.1,1833.0,6.8728]
[1746327035929,1.09088,1833.1,1833.0,7.96374]
[1746327036128,0.8642,1833.2,1833.0,7.96374]
[1746327036129,1.95506,1833.2,1833.0,7.96374]
[1746327036317,1.5815,1833.1,1833.0,7.96374]
[1746327036629,2.67238,1833.1,1833.0,7.96374]
[1746327036930,2.67238,1833.1,1833.0,6.8728]
[1746327037324,2.67238,1833.1,1833.0,7.96374]
[1746327038926,2.67238,1833.1,1833.0,6.8728]
[1746327039526,2.67238,1833.1,1833.0,7.96374]
[1746327039926,1.5815,1833.1,1833.0,7.96374]
[1746327040122,1.09102,1832.9,1832.6,3.2078]
[1746327040430,1.91825,1833.0,1832.9,1.091]
[1746327040630,1.91825,1833.0,1832.8,4.75602]
[1746327041130,1.91825,1833.0,1832.9,1.091]
[1746327041725,1.91825,1833.0,1832.8,7.96381]
[1746327042531,1.091,1832.9,1832.8,7.96386]
[1746327042734,1.091,1832.9,1832.8,6.8728]
[1746327042926,1.9142,1832.9,1832.8,7.96386]
[1746327043127,0.8232,1832.9,1832.8,7.96386]
[1746327043434,1.91828,1833.0,1832.9,1.091]
[1746327044732,1.91828,1833.0,1832.8,7.96381]
[1746327044928,0.8273,1833.0,1832.8,7.96381]
[1746327045127,1.91827,1833.0,1832.8,7.96381]
[1746327048930,1.091,1832.9,1832.8,7.96381]
[1746327049135,1.091,1832.9,1832.8,6.8728]
[1746327049334,1.883,1832.9,1832.8,6.8728]
[1746327050235,1.883,1832.9,1832.8,6.8708]
[1746327050432,1.09112,1832.7,1832.6,4.8267]
[1746327050631,0.792,1832.9,1832.6,6.8708]
[1746327050831,1.09108,1832.8,1832.6,7.96193]
[1746327051031,1.09112,1832.7,1832.6,3.2078]
[1746327051230,1.09112,1832.7,1832.6,6.8708]
[1746327051433,1.09112,1832.7,1832.6,7.96198]
[1746327052140,1.0911,1832.8,1832.6,7.96198]
[1746327052327,1.09112,1832.7,1832.6,7.96198]
[1746327053339,1.09111,1832.8,1832.6,7.96198]
[1746327053536,1.88305,1832.9,1832.6,6.8708]
[1746327053838,0.792,1832.9,1832.8,1.09106]
[1746327054427,0.792,1832.9,1832.8,2.82576]
[1746327054640,1.883,1832.9,1832.8,2.82576]
[1746327055139,1.883,1832.9,1832.8,1.7347]
[1746327055439,1.883,1832.9,1832.8,2.82576]
[1746327055639,1.883,1832.9,1832.8,1.7347]
[1746327056340,3.5207,1832.9,1832.8,1.7347]
[1746327057941,3.5207,1832.9,1832.8,5.3977]
[1746327060742,3.5207,1832.9,1832.8,6.48876]
[1746327060934,3.2078,1833.2,1832.8,8.6055]
[1746327061136,1.09093,1833.1,1832.9,2.4927]
[1746327061335,2.78003,1833.1,1832.9,3.58366]
[1746327061539,2.78003,1833.1,1833.0,1.09094]
[1746327061739,2.78003,1833.1,1833.0,2.72034]
[1746327061935,2.78003,1833.1,1833.0,1.6294]
[1746327062138,2.77998,1833.1,1833.0,3.663]
[1746327062438,3.64528,1833.1,1833.0,3.663]
[1746327062746,1.091,1832.9,1832.8,1.09101]
[1746327062947,1.091,1832.9,1832.8,3.663]
[1746327063133,1.091,1832.9,1832.8,4.75406]
[1746327063340,1.8768,1832.9,1832.8,3.663]
[1746327063750,1.09112,1832.7,1832.6,4.29893]
[1746327064047,1.09112,1832.7,1832.6,7.96193]
[1746327064542,2.74392,1832.7,1832.6,4.29893]
[1746327064742,2.74392,1832.7,1832.6,7.96193]
[1746327066539,2.74392,1832.7,1832.6,3.2078]
[1746327066742,1.09118,1832.6,1832.5,2.77584]
[1746327066947,1.7385,1832.6,1832.5,6.43884]
[1746327069334,2.82968,1832.6,1832.5,6.43884]
[1746327069542,1.7385,1832.6,1832.5,6.43884]
[1746327069946,1.09129,1832.5,1832.4,3.663]
[1746327070148,2.70229,1832.5,1832.4,3.663]
[1746327070348,1.09135,1832.4,1832.2,4.9279]
[1746327070548,1.7061,1832.4,1832.3,3.663]
[1746327070846,2.7974,1832.4,1832.3,3.663]
[1746327071148,1.7061,1832.4,1832.3,4.75436]
[1746327071343,1.09136,1832.3,1832.2,3.2078]
[1746327071543,1.7061,1832.4,1832.2,6.8708]
[1746327071753,2.79743,1832.4,1832.2,7.9622]
[1746327072238,1.7264,1832.3,1832.2,7.9622]
[1746327072644,2.81776,1832.3,1832.2,6.8708]
[1746327073144,1.09145,1832.2,1832.0,4.2993]
[1746327073443,2.72814,1832.5,1832.1,3.663]
[1746327073649,1.09142,1832.2,1832.1,3.663]
[1746327074446,1.09147,1832.1,1832.0,3.2078]
[1746327074651,1.09147,1832.1,1832.0,3.664]
[1746327074652,1.09151,1832.1,1832.0,3.664]
[1746327074851,1.09151,1832.1,1832.0,4.75553]
[1746327075650,1.09151,1832.1,1832.0,3.664]
[1746327076052,1.09145,1832.2,1832.0,4.75553]
[1746327077252,1.09147,1832.1,1832.0,3.664]
[1746327077646,1.09147,1832.1,1832.0,4.75553]
[1746327078352,3.2078,1832.3,1832.0,4.75553]
[1746327079051,1.09146,1832.2,1832.0,4.75553]
[1746327079252,1.09146,1832.2,1832.0,4.75551]
[1746327079446,1.09146,1832.2,1832.1,1.09147]
[1746327079649,1.09146,1832.2,1832.0,4.75549]
[1746327080653,1.09147,1832.1,1832.0,4.75549]
[1746327081043,1.09152,1832.1,1832.0,3.661]
[1746327082551,1.09146,1832.2,1832.0,4.75253]
[1746327082755,1.09147,1832.1,1832.0,4.75253]
[1746327083659,1.09147,1832.1,1832.0,3.661]
[1746327083857,1.09147,1832.1,1832.0,4.75253]
[1746327084052,1.09145,1832.2,1832.1,1.09147]
[1746327084454,1.09145,1832.2,1832.0,7.96029]
[1746327085061,0.8072,1832.3,1832.0,7.96029]
[1746327085656,1.09146,1832.2,1832.1,1.09147]
[1746327085857,0.8072,1832.3,1832.0,7.96029]
[1746327086264,2.73175,1832.2,1832.0,6.8688]
[1746327086465,1.6403,1832.1,1832.0,7.96029]
[1746327087766,1.6403,1832.1,1832.0,4.75249]
[1746327090970,0.8072,1832.3,1832.0,8.5522]
[1746327091270,1.09147,1832.1,1832.0,4.75252]
[1746327091566,1.09147,1832.1,1832.0,3.661]
[1746327092169,1.88287,1832.1,1832.0,4.75253]
[1746327092768,1.88287,1832.1,1832.0,3.661]
[1746327092961,0.7914,1832.1,1831.8,4.8706]
[1746327093166,0.7914,1832.1,1831.9,4.75259]
[1746327093167,2.5677,1832.0,1831.9,4.75259]
[1746327094773,2.5677,1832.0,1831.9,6.39459]
[1746327094774,1.7249,1832.0,1831.9,6.39459]
[1746327102565,2.81643,1832.0,1831.9,1.642]
[1746327102772,2.81643,1832.0,1831.9,4.75259]
[1746327103776,1.7249,1832.0,1831.9,4.75259]
[1746327104164,1.7249,1832.0,1831.8,3.2078]
[1746327104478,1.88763,1831.9,1831.7,1.09171]
[1746327104672,1.7201,1831.8,1831.7,1.09171]
[1746327104875,2.5903,1831.8,1831.7,4.75271]
[1746327105575,2.5903,1831.8,1831.7,6.44781]
[1746327105774,2.5903,1831.8,1831.7,2.78681]
[1746327105975,2.5903,1831.8,1831.7,6.44781]
[1746327109571,0.796,1831.9,1831.7,6.44781]
[1746327109771,1.6789,1832.0,1831.9,1.09159]
[1746327109978,1.6789,1832.0,1831.9,2.77439]
[1746327113380,3.57826721,1832.4,1832.3,1.09136]
[1746327113681,5.19226721,1832.4,1832.3,4.74836]
[1746327114082,6.28356721,1832.4,1832.3,3.657]
[1746327114476,5.19226721,1832.4,1832.3,4.74836]
[1746327114683,5.19226721,1832.4,1832.3,1.09136]
[1746327114684,6.86466721,1832.4,1832.3,1.09136]
[1746327114870,6.86466721,1832.4,1832.3,4.74836]
[1746327115782,7.95596721,1832.4,1832.3,4.74836]
[1746327115982,6.86466721,1832.4,1832.3,4.74836]
[1746327116584,3.2864,1832.4,1832.3,4.74836]
[1746327117681,3.2078,1832.6,1832.5,1.09124]
[1746327117983,3.3911,1832.7,1832.6,1.09118]
[1746327118286,2.6003,1832.7,1832.6,4.74818]
[1746327118481,3.57826721,1832.8,1832.7,1.09112]
[1746327118682,5.24046721,1832.8,1832.7,1.09112]
[1746327119982,5.24046721,1832.8,1832.7,2.79122]
[1746327121186,1.6622,1832.8,1832.7,1.09112]
[1746327122784,1.6622,1832.8,1832.7,2.77602]
[1746327123091,1.709,1832.9,1832.8,1.09106]
[1746327123386,1.709,1832.9,1832.8,2.77596]
[1746327124490,0.8696,1832.9,1832.8,2.77596]
[1746327124791,1.5687,1833.0,1832.9,1.091]
[1746327124989,1.5687,1833.0,1832.9,4.747]
[1746327125492,2.65964,1833.0,1832.9,3.656]
[1746327125692,1.091,1832.9,1832.7,4.29889]
[1746327125894,2.8008,1832.9,1832.8,4.74706]
[1746327126192,1.09106,1832.8,1832.7,3.656]
[1746327126393,2.80086,1832.8,1832.7,3.656]
[1746327128995,2.80086,1832.8,1832.7,4.74712]
[1746327129686,1.7098,1832.8,1832.7,4.74712]
[1746327130392,3.2078,1833.1,1833.0,1.09094]
[1746327130593,4.29868,1833.1,1833.0,3.656]
[1746327130794,4.29868,1833.1,1833.0,4.74694]
[1746327131300,4.29868,1833.1,1833.0,3.656]
[1746327131489,1.09088,1833.1,1833.0,4.74694]
[1746327132288,1.6691,1833.2,1833.0,3.656]
[1746327132488,1.09088,1833.1,1833.0,4.74692]
[1746327133195,1.09088,1833.1,1833.0,3.656]
[1746327133895,1.09088,1833.1,1833.0,4.74694]
[1746327134694,1.09088,1833.1,1833.0,3.656]
[1746327134898,1.09088,1833.1,1833.0,4.74694]
[1746327135495,1.09088,1833.1,1833.0,3.656]
[1746327137497,1.09088,1833.1,1833.0,4.74689]
[1746327137697,2.75996,1833.2,1833.1,1.09088]
[1746327137996,2.75996,1833.2,1833.0,4.74689]
[1746327138192,1.6696,1833.1,1833.0,4.74689]
[1746327138394,2.76048,1833.1,1833.0,4.74689]
[1746327138586,1.6696,1833.1,1833.0,4.74689]
[1746327139299,1.6696,1833.1,1833.0,6.43069]
[1746327139697,1.09075,1833.4,1833.0,8.5476]
[1746327139896,1.09075,1833.4,1833.3,1.09076]
[1746327140094,1.09075,1833.4,1833.3,4.74176]
[1746327140699,3.2078,1833.5,1833.3,4.74176]
[1746327140900,4.29846,1833.5,1833.4,1.0907]
[1746327141200,1.09066,1833.5,1833.3,3.651]
[1746327141493,1.09064,1833.5,1833.4,1.0907]
[1746327141891,1.09064,1833.5,1833.3,6.42552]
[1746327142098,1.09064,1833.5,1833.4,1.0907]
[1746327142601,1.09064,1833.5,1833.3,6.42552]
[1746327142896,1.0907,1833.4,1833.3,3.651]
[1746327143698,1.87789,1833.5,1833.3,4.74176]
[1746327144894,1.0907,1833.4,1833.3,4.74176]
[1746327145100,1.87789,1833.5,1833.3,4.74176]
[1746327145901,1.0907,1833.4,1833.3,4.74176]
[1746327146797,1.87789,1833.5,1833.3,4.74176]
[1746327146999,1.87789,1833.5,1833.3,6.35246]
[1746327147399,0.7872,1833.5,1833.4,1.0907]
[1746327147599,1.87784,1833.5,1833.4,1.0907]
[1746327147800,0.7872,1833.5,1833.4,1.0907]
[1746327147996,0.7872,1833.5,1833.3,5.2617]
[1746327147997,1.87784,1833.5,1833.3,6.35241]
[1746327148397,0.7872,1833.5,1833.3,6.35241]
[1746327148603,1.0907,1833.4,1833.3,6.35241]
[1746327148802,1.87789,1833.5,1833.3,6.35241]
[1746327149002,1.87787,1833.5,1833.3,6.35241]
[1746327149300,1.87787,1833.5,1833.4,1.0907]
[1746327150009,0.7872,1833.5,1833.4,1.0907]
[1746327150503,0.7872,1833.5,1833.2,4.29858]
[1746327150700,1.09073,1833.4,1833.2,3.65]
[1746327151002,1.09073,1833.4,1833.2,4.74077]
[1746327151196,0.8275,1833.3,1833.2,4.74077]
[1746327151397,1.91826,1833.3,1833.2,4.74077]
[1746327151703,0.8275,1833.3,1833.2,4.74077]
[1746327154604,1.09082,1833.2,1833.1,1.5977]
[1746327154813,1.91826,1833.3,1833.2,3.65]
[1746327156405,1.91826,1833.3,1833.2,4.74082]
[1746327156704,1.91826,1833.3,1833.2,3.65]
[1746327156899,1.91826,1833.3,1833.2,4.74082]
[1746327158007,0.8275,1833.3,1833.2,4.74082]
[1746327158205,1.91826,1833.3,1833.2,4.74082]
[1746327159603,1.91826,1833.3,1833.0,4.0525]
[1746327159808,2.70976,1833.2,1833.1,3.65]
[1746327162010,2.70976,1833.2,1833.0,4.29869]
[1746327162206,2.82698,1833.1,1833.0,3.2078]
[1746327162404,2.82698,1833.1,1833.0,6.8578]
[1746327162605,1.7361,1833.1,1832.5,6.08387]
[1746327162807,1.09114,1832.7,1832.6,3.65]
[1746327163007,1.09118,1832.6,1832.5,3.2078]
[1746327163309,2.82728,1832.6,1832.5,6.8578]
[1746327163808,2.82728,1832.6,1832.5,3.65]
[1746327164308,1.09124,1832.5,1832.4,10.88756636]
[1746327164505,2.74204,1832.5,1832.4,10.88756636]
[1746327165013,2.74204,1832.5,1832.4,3.65]
[1746327166809,1.6508,1832.5,1832.3,3.65]
[1746327167011,3.6184,1832.4,1832.3,3.65]
[1746327168411,3.6184,1832.4,1832.3,4.74136]
[1746327168607,3.6184,1832.4,1832.3,3.65]
[1746327168808,3.6184,1832.4,1832.3,6.8578]
[1746327170813,3.6184,1832.4,1832.3,6.8538]
[1746327171012,3.6184,1832.4,1832.3,3.646]
[1746327175618,1.09139,1832.3,1832.1,5.98533]
[1746327175820,2.82239,1832.3,1832.2,3.647]
[1746327176818,1.731,1832.3,1832.1,4.8939]
[1746327177023,3.61062,1832.2,1832.1,3.2078]
[1746327177322,3.61062,1832.2,1832.1,6.8548]
[1746327178420,3.61062,1832.2,1832.1,7.94627]
[1746327178611,3.61062,1832.2,1832.1,6.8548]
[1746327178811,3.61062,1832.2,1832.1,3.647]
[1746327180318,3.61062,1832.2,1832.1,5.2563]
[1746327180515,3.61062,1832.2,1832.1,6.34777]
[1746327180818,3.61062,1832.2,1832.1,8.4641]
[1746327181022,3.61062,1832.2,1832.1,9.55557]
[1746327181207,3.61062,1832.2,1832.1,8.4641]
[1746327181412,3.61062,1832.2,1832.1,9.55557]
[1746327181718,3.61062,1832.2,1832.1,8.4641]
[1746327182620,3.61062,1832.2,1832.1,9.55557]
[1746327183315,3.61062,1832.2,1832.1,8.4641]
[1746327183921,2.5192,1832.2,1832.1,9.55557]
[1746327184114,1.93823,1832.4,1832.2,1.09136]
[1746327184315,3.59856,1832.5,1832.2,1.6354]
[1746327184620,1.09114,1832.7,1832.4,3.2078]
[1746327184821,1.09109,1832.8,1832.6,1.09114]
[1746327185116,1.09112,1832.7,1832.6,1.09114]
[1746327185319,2.743,1832.8,1832.6,1.95484]
[1746327185508,2.743,1832.8,1832.6,2.74504]
[1746327185915,1.09112,1832.7,1832.6,2.74504]
[1746327186419,2.743,1832.8,1832.6,2.74504]
[1746327187324,1.6519,1832.8,1832.7,1.09112]
[1746327187526,2.74296,1832.8,1832.7,1.09112]
[1746327187717,2.74296,1832.8,1832.6,5.95283]
[1746327187918,1.09112,1832.7,1832.6,4.8617]
[1746327188620,1.09112,1832.7,1832.6,5.95288]
[1746327190719,2.74301,1832.8,1832.6,5.95288]
[1746327190919,1.09112,1832.7,1832.6,5.95288]
[1746327191827,2.74299,1832.8,1832.6,5.95288]
[1746327192627,1.09112,1832.7,1832.6,5.95288]
[1746327194024,1.09112,1832.7,1832.6,3.2078]
[1746327194732,1.6519,1832.8,1832.6,4.29898]
[1746327195328,2.74299,1832.8,1832.6,5.11528]
[1746327195532,2.74299,1832.8,1832.6,5.96008]
[1746327196328,2.74299,1832.8,1832.6,7.56398]
[1746327197032,1.09112,1832.7,1832.6,4.8117]
[1746327197330,1.09118,1832.6,1832.5,3.647]
[1746327197528,1.09124,1832.5,1832.4,3.2078]
[1746327197726,2.82664,1832.5,1832.4,6.8538]
[1746327198726,2.82664,1832.5,1832.4,3.2078]
[1746327199031,1.09136,1832.3,1832.2,3.2078]
[1746327199230,1.6014,1832.6,1832.3,1.09133]
[1746327199431,2.82668,1832.5,1832.3,2.71153]
[1746327199733,2.8267,1832.4,1832.3,2.71153]
[1746327199924,1.7354,1832.4,1832.3,2.71153]
[1746327200323,1.7354,1832.4,1832.3,3.53323]
[1746327202223,1.6014,1832.6,1832.5,1.09124]
[1746327202424,1.6014,1832.6,1832.5,4.73224]
[1746327202425,2.69258,1832.6,1832.5,4.73224]
[1746327202630,2.3895,1832.6,1832.5,4.73224]
[1746327202833,2.3895,1832.6,1832.5,6.40024]
[1746327204529,1.5957,1832.6,1832.5,6.40024]
[1746327205131,1.09114,1832.7,1832.6,1.09118]
[1746327205319,3.59799,1832.8,1832.6,1.09118]
[1746327205523,2.5069,1832.8,1832.7,1.09112]
[1746327206028,2.5069,1832.8,1832.7,2.81392]
[1746327206825,3.59796,1832.8,1832.7,2.81392]
[1746327207425,3.59796,1832.8,1832.7,1.7228]
[1746327207625,3.59796,1832.8,1832.6,1.09116]
[1746327207626,1.09112,1832.7,1832.6,1.09116]
[1746327207924,2.82282,1832.7,1832.6,1.09116]
[1746327211035,1.7317,1832.7,1832.6,1.09116]
[1746327212834,2.82282,1832.7,1832.6,1.09116]
[1746327213029,1.7317,1832.7,1832.6,1.09116]
[1746327213236,1.7317,1832.7,1832.6,4.29896]
[1746327213437,1.7317,1832.7,1832.6,5.86776]
[1746327214735,2.82282,1832.7,1832.6,5.86776]
[1746327215632,2.82282,1832.7,1832.6,2.65996]
[1746327215832,1.7317,1832.7,1832.6,2.65996]
[1746327217537,2.82282,1832.7,1832.6,2.65996]
[1746327217738,1.7317,1832.7,1832.6,2.65996]
[1746327218736,2.82282,1832.7,1832.6,2.65996]
[1746327219339,1.7317,1832.7,1832.6,2.65996]
[1746327219939,2.82282,1832.7,1832.6,2.65996]
[1746327220537,2.82282,1832.7,1832.6,2.65998]
[1746327220736,2.82282,1832.7,1832.6,1.5688]
[1746327221539,1.09118,1832.6,1832.5,6.8958]
[1746327221742,3.65998,1832.6,1832.5,10.5368]